fUSD/lending_fUSD_20260224
["ID","MTS","AMOUNT","RATE_DAILY","PERIOD"]
[406543337,1771927840954,-300.0,0.000137,2]
[406543338,1771927840964,-215.42973367,0.000137,2]
[406543339,1771927840973,-1000.0,0.00014168,2]
[406543340,1771927840983,-871.93707751,0.00014168,2]
[406543341,1771927840992,-1500.0,0.00014168,2]
[406543342,1771927841002,-736.0,0.00014207,2]
[406543343,1771927841013,-250.0,0.00014255,2]
[406543344,1771927841022,-3292.0,0.00014358,2]
[406543345,1771927841032,-1227.65,0.00014439,2]
[406543346,1771927841042,-5012.56758818,0.00014497,2]
[406543347,1771927841051,-482.622583,0.00014503,2]
[406543348,1771927841060,-5256.5055644,0.00014588,2]
[406543349,1771927841069,-150.0,0.0001464,2]
[406543350,1771927841079,-2000.0,0.00014716,2]
[406543351,1771927841088,-4286.4,0.00014865,2]
[406543352,1771927841099,-500.0,0.00015101,2]
[406543353,1771927841108,-173.87087054,0.00015118,2]
[406543354,1771927841117,-160.0,0.00015118,2]
[406543356,1771927841126,-500.0,0.00015154,4]
[406543358,1771927841136,-2500.0,0.00015264,2]
[406543360,1771927841145,-200.0,0.00015273,2]
[406543362,1771927841155,-5003.57,0.00015298,2]
[406543364,1771927841163,-1127.0,0.00015566,2]
[406543366,1771927841173,-4542.64996616,0.00015661,2]
[406543368,1771927841182,-4609.0,0.00015794,2]
[406543369,1771927841192,-3000.0,0.00015812,2]
[406543370,1771927841201,-1227.65,0.00015883,2]
[406543371,1771927841211,-16914.87,0.00015894,2]
[406543372,1771927841220,-150.0,0.000159,2]
[406543373,1771927841229,-150.0,0.000159,2]
[406543374,1771927841239,-150.0,0.000159,2]
[406543375,1771927841248,-150.0,0.000159,2]
[406543376,1771927841257,-358.06,0.00015966,2]
[406543377,1771927841267,-380.32235674,0.00016,2]
[406543378,1771927841276,-380.32235674,0.000161,2]
[406543379,1771927841285,-474.12,0.00016176,2]
[406543380,1771927841294,-380.32235674,0.000162,2]
[406543381,1771927841303,-3500.0,0.0001636,2]
[406543382,1771927841313,-474.12,0.0001645,2]
[406543383,1771927841322,-1378.216862,0.00016515,7]
[406543384,1771927841331,-607.84,0.00016724,2]
[406543385,1771927841340,-500.0,0.00016753,2]
[406543386,1771927841349,-500.0,0.00016753,2]
[406543387,1771927841358,-632.93,0.00016753,2]
[406543388,1771927841367,-500.0,0.00016753,2]
[406543389,1771927841376,-1057.48,0.00016753,2]
[406543390,1771927841386,-500.0,0.00016753,2]
[406543391,1771927841395,-358.06984512,0.00016764,2]
[406543392,1771927841404,-620.70979822,0.00016908,2]
[406543393,1771927841414,-1227.65,0.00017327,2]
[406543394,1771927841423,-326.0,0.00017373,2]
[406543395,1771927841432,-830.0,0.00017458,2]
[406543396,1771927841441,-500.0,0.000175,4]
[406543397,1771927841451,-500.0,0.000175,3]
[406543398,1771927841460,-600.0,0.000175,4]
[406543399,1771927841469,-439.37,0.000175,3]
[406543400,1771927841478,-830.0,0.00017563,2]
[406543401,1771927841487,-830.0,0.00017564,2]
[406543402,1771927841496,-830.0,0.00017741,2]
[406543403,1771927841506,-830.0,0.00017742,2]
[406543404,1771927841515,-800.0,0.00017808,2]
[406543405,1771927841524,-830.0,0.00017809,2]
[406543406,1771927841534,-25000.0,0.00017882,3]
[406543407,1771927841543,-25000.0,0.00017891,3]
[406543408,1771927841552,-500.0,0.00017898,2]
[406543409,1771927841561,-500.0,0.00017898,2]
[406543410,1771927841571,-500.0,0.00017898,2]
[406543411,1771927841580,-500.0,0.00017899,2]
[406543412,1771927841589,-425.41241493,0.00017899,2]
[406543413,1771927841599,-500.0,0.00017899,2]
[406543414,1771927841608,-500.0,0.00017899,2]
[406543415,1771927841617,-502.16359539,0.00017899,2]
[406543416,1771927841626,-500.0,0.00017899,2]
[406543417,1771927841635,-620.64302742,0.00017899,2]
[406543418,1771927841645,-632.93,0.00017899,2]
[406543419,1771927841654,-632.93,0.00017899,2]
[406543420,1771927841662,-632.93,0.00017899,2]
[406543421,1771927841674,-632.93,0.00017899,2]
[406543422,1771927841683,-632.93,0.00017899,2]
[406543423,1771927841692,-632.93,0.00017899,2]
[406543424,1771927841701,-632.93,0.00017899,2]
[406543425,1771927841711,-632.93,0.00017899,2]
[406543426,1771927841721,-632.93,0.00017899,2]
[406543427,1771927841731,-632.93,0.00017899,2]
[406543428,1771927841740,-632.93,0.00017899,2]
[406543429,1771927841751,-632.93,0.00017899,2]
[406543430,1771927841760,-632.93,0.00017899,2]
[406543431,1771927841769,-632.93,0.00017899,2]
[406543432,1771927841778,-632.93,0.00017899,2]
[406543433,1771927841788,-500.0,0.00017899,2]
[406543434,1771927841798,-500.0,0.00017899,2]
[406543435,1771927841807,-500.0,0.00017899,2]
[406543436,1771927841818,-500.0,0.00017899,2]
[406543437,1771927841827,-429.95,0.00017899,2]
[406543438,1771927841836,-1057.48,0.00017899,2]
[406543439,1771927841845,-1057.48,0.00017899,2]
[406543440,1771927841854,-1057.48,0.00017899,2]
[406543441,1771927841863,-1057.48,0.00017899,2]
[406543442,1771927841873,-1057.48,0.00017899,2]
[406543443,1771927841882,-1057.48,0.00017899,2]
[406543444,1771927841891,-1057.48,0.00017899,2]
[406543445,1771927841900,-1057.48,0.00017899,2]
[406543446,1771927841910,-1057.48,0.00017899,2]
[406543447,1771927841919,-1057.48,0.00017899,2]
[406543448,1771927841928,-1057.48,0.00017899,2]
[406543449,1771927841937,-1057.48,0.00017899,2]
[406543450,1771927841946,-1057.48,0.00017899,2]
[406543451,1771927841956,-1057.48,0.00017899,2]
[406543452,1771927841965,-1057.48,0.00017899,2]
[406543453,1771927841975,-500.0,0.00017899,2]
[406543454,1771927841983,-500.0,0.00017899,2]
[406543455,1771927841993,-500.0,0.00017899,2]
[406543456,1771927842001,-631.94,0.00017899,2]
[406543457,1771927842011,-500.0,0.00017899,2]
[406543458,1771927842020,-500.0,0.00017899,2]
[406543459,1771927842030,-222.44569411,0.00017899,2]
[406543460,1771927842039,-500.0,0.00017899,2]
[406543461,1771927842048,-500.0,0.00017899,2]
[406543462,1771927842057,-500.0,0.00017899,2]
[406543463,1771927842067,-500.0,0.00017899,2]
[406543464,1771927842076,-500.0,0.00017899,2]
[406543465,1771927842085,-500.0,0.00017899,2]
[406543466,1771927842094,-500.0,0.00017899,2]
[406543467,1771927842103,-500.0,0.00017899,2]
[406543468,1771927842112,-500.0,0.00017899,2]
[406543469,1771927842121,-500.0,0.00017899,2]
[406543470,1771927842131,-500.0,0.00017899,2]
[406543471,1771927842140,-500.0,0.00017899,2]
[406543472,1771927842149,-500.0,0.00017899,2]
[406543473,1771927842158,-500.0,0.00017899,2]
[406543474,1771927842167,-189.85991568,0.000179,2]
[406543475,1771927842176,-10000.0,0.000179,2]
[406543476,1771927842186,-25000.0,0.000179,3]
[406543477,1771927842195,-200.0,0.00017937,2]
[406543478,1771927842204,-13753.9550686,0.00017993,2]
[406543479,1771927842213,-830.0,0.00018015,2]
[406543480,1771927842222,-830.0,0.00018026,2]
[406543481,1771927842231,-830.0,0.0001807,2]
[406543482,1771927842241,-830.0,0.00018098,2]
[406543483,1771927842250,-500.0,0.00018192,4]
[406543484,1771927842260,-5256.5055644,0.00018252,2]
[406543485,1771927842269,-830.0,0.00018255,2]
[406543486,1771927842278,-830.0,0.0001828,2]
[406543487,1771927842288,-830.0,0.00018281,2]
[406543488,1771927842297,-5012.56758818,0.00018306,2]
[406543489,1771927842306,-830.0,0.0001838,2]
[406543490,1771927842315,-830.0,0.00018391,2]
[406543491,1771927842324,-830.0,0.00018507,2]
[406543492,1771927842333,-830.0,0.00018563,2]
[406543493,1771927842342,-830.0,0.00018656,2]
[406543494,1771927842351,-830.0,0.00018798,2]
[406543495,1771927842360,-830.0,0.00018843,2]
[406543496,1771927842370,-830.0,0.0001889,2]
[406543497,1771927842379,-830.0,0.00018957,2]
[406543498,1771927842388,-2403.0,0.00018974,2]
[406543499,1771927842397,-350.0,0.00019,2]
[406543500,1771927842406,-500.0,0.00019016,5]
[406543501,1771927842415,-830.0,0.00019198,2]
[406543502,1771927842424,-1040.0,0.00019438,2]
[406543503,1771927842433,-618.0,0.00019438,2]
[406543504,1771927842442,-1339.0,0.00019438,2]
[406543505,1771927842451,-1277.0,0.00019438,2]
[406543506,1771927842459,-1210.0,0.00019438,2]
[406543507,1771927842469,-2455.0,0.00019438,2]
[406543508,1771927842478,-5980.0,0.00019438,2]
[406543509,1771927842487,-4542.64996616,0.00020622,2]
[406543510,1771927842496,-13753.9550686,0.00020694,2]
[406543511,1771927842505,-159.62910539,0.00021083,2]
[406543512,1771927842514,-290.45979421,0.00021257,2]
[406543513,1771927842523,-500.0,0.00021282,7]
[406543514,1771927842532,-173.87087054,0.00021694,7]
[406543515,1771927842540,-5256.5055644,0.00021916,2]
[406543516,1771927842549,-5000.0,0.00021918,2]
[406543517,1771927842559,-500.0,0.00021999,2]
[406543518,1771927842568,-12281.26,0.00022,2]
[406543519,1771927842577,-3215.839344,0.00022019,30]
[406543520,1771927842587,-5012.56758818,0.00022115,2]
[406543521,1771927842596,-500.0,0.00022421,8]
[406543522,1771927842605,-1339.0,0.00022438,2]
[406543523,1771927842614,-2455.0,0.00022438,2]
[406543524,1771927842622,-213.19,0.00022853,2]
[406543525,1771927842631,-13753.9550686,0.00023396,2]
[406543526,1771927842640,-290.93,0.00024056,2]
[406543527,1771927842649,-500.0,0.00024372,10]
[406543528,1771927842658,-150.0,0.00024658,2]
[406543529,1771927842668,-4667.0,0.00024686,2]
[406543530,1771927842682,-500.0,0.00025296,12]
[406543531,1771927842692,-1339.0,0.00025438,2]
[406543532,1771927842701,-1547.127,0.00025438,2]
[406543533,1771927842711,-5256.5055644,0.0002558,2]
[406543534,1771927842720,-4542.64996616,0.00025583,2]
[406543535,1771927842729,-150.0,0.0002589,2]
[406543536,1771927842738,-5012.56758818,0.00025924,2]
[406543537,1771927842750,-540.0,0.00026027,120]
[406543538,1771927842759,-13753.9550686,0.00026097,2]
[406543539,1771927842769,-213.17,0.00026387,2]
[406543540,1771927842779,-12281.26,0.000264,2]
[406543541,1771927842789,-168.41,0.0002703,14]
[406543542,1771927842798,-454.17499608,0.00027039,30]
[406543543,1771927842807,-150.0,0.00027185,2]
[406543544,1771927842817,-1000.0,0.00027397,20]
[406543545,1771927842826,-300.0,0.00027397,2]
[406543546,1771927842836,-500.0,0.00027463,13]
[406543547,1771927842845,-500.0,0.00027516,16]
[406543548,1771927842854,-403.43493761,0.00028058,2]
[406543549,1771927842863,-720.02450434,0.00028058,2]
[406543550,1771927842872,-967.86848163,0.00028183,2]
[406543551,1771927842882,-189.85991568,0.000284,2]
[406543552,1771927842891,-1339.0,0.00028438,2]
[406543553,1771927842900,-150.0,0.00028544,2]
[406543554,1771927842910,-500.0,0.0002873,19]
[406543555,1771927842919,-5256.5055644,0.00029244,2]
[406543556,1771927842928,-5012.56758818,0.00029732,2]
[406543557,1771927842938,-500.0,0.00029944,23]
[406543558,1771927842947,-150.0,0.00029971,2]
[406543559,1771927842957,-165.11,0.000304,30]
[406543560,1771927842969,-12281.26,0.000304,2]
[406543561,1771927842979,-213.19,0.00030408,2]
[406543562,1771927842989,-4542.64996616,0.00030544,2]
[406543563,1771927842999,-500.0,0.00030553,15]
[406543564,1771927843009,-1339.0,0.00031438,2]
[406543565,1771927843018,-150.0,0.0003147,2]
[406543566,1771927843028,-167.15607918,0.00032,120]
[406543567,1771927843037,-164.01584354,0.00032,120]
[406543568,1771927843046,-184.7789246,0.00032,120]
[406543569,1771927843055,-1237.69,0.00032,120]
[406543570,1771927843064,-290.93,0.00032146,2]
[406543571,1771927843073,-500.0,0.00032164,32]
[406543573,1771927843082,-794.54,0.000329,2]
[406543575,1771927843091,-160.83,0.000329,14]
[406543576,1771927843100,-5256.5055644,0.00032908,2]
[406543577,1771927843109,-167.15607918,0.00033,120]
[406543578,1771927843118,-164.01584354,0.00033,120]
[406543579,1771927843127,-150.0,0.00033043,2]
[406543580,1771927843137,-500.0,0.00033644,18]
[406543581,1771927843146,-167.15607918,0.000339,120]
[406543582,1771927843156,-164.01584354,0.000339,120]
[406543583,1771927843165,-165.11,0.000339,30]
[406543584,1771927843173,-632.93,0.00034184,2]
[406543585,1771927843183,-1057.48,0.00034184,120]
[406543586,1771927843191,-1339.0,0.00034438,2]
[406543587,1771927843200,-150.0,0.00034696,2]
[406543588,1771927843209,-794.54,0.000347,2]
[406543589,1771927843218,-167.15607918,0.00035,120]
[406543590,1771927843227,-164.01584354,0.00035,120]
[406543591,1771927843236,-12281.26,0.00035,2]
[406543592,1771927843245,-500.0,0.00035039,40]
[406543593,1771927843255,-4542.64996616,0.00035505,2]
[406543594,1771927843264,-176.0,0.00036,30]
[406543595,1771927843273,-2000.0,0.000362,2]
[406543596,1771927843283,-794.54,0.000363,2]
[406543597,1771927843292,-150.0,0.0003643,2]
[406543598,1771927843301,-160.83,0.000365,14]
[406543600,1771927843311,-5256.5055644,0.00036572,2]
[406543602,1771927843321,-500.0,0.00036734,21]
[406543603,1771927843329,-1281.01,0.00037331,48]
[406543604,1771927843340,-184.372,0.00037331,48]
[406543605,1771927843348,-794.54,0.000375,2]
[406543606,1771927843357,-152.0,0.00037805,3]
[406543607,1771927843366,-165.11,0.000381,30]
[406543608,1771927843375,-150.0,0.00038252,2]
[406543609,1771927843384,-500.0,0.00038444,52]
[406543611,1771927843393,-794.54,0.000387,30]
[406543612,1771927843401,-189.85991568,0.000389,2]
[406543614,1771927843410,-213.19,0.00039614,14]
[406543615,1771927843419,-500.0,0.00039824,24]
[406543616,1771927843427,-2000.0,0.000399,2]
[406543617,1771927843436,-794.54,0.0004,30]
[406543618,1771927843445,-150.0,0.00040165,2]
[406543619,1771927843454,-5256.5055644,0.00040236,15]
[406543620,1771927843463,-4542.64996616,0.00040466,28]
[406543621,1771927843473,-160.83,0.000406,14]
[406543622,1771927843481,-66682.0,0.0004095,60]
[406543623,1771927843490,-4919.85524971,0.00040977,7]
[406543624,1771927843499,-24800.38540896,0.00040977,7]
[406543625,1771927843508,-750.0,0.00041,30]
[406543626,1771927843516,-794.54,0.000411,30]
[406543627,1771927843525,-165.11,0.000411,30]
[406543628,1771927843534,-193.95,0.00041281,14]
[406543629,1771927843544,-794.54,0.000421,30]
[406543630,1771927843552,-1302.0,0.00042274,120]
[406543631,1771927843561,-66682.0,0.000423,60]
[406543632,1771927843570,-500.0,0.00042305,74]
[406543633,1771927843579,-193.95,0.00042327,14]
[406543634,1771927843588,-500.0,0.00042915,26]
[406543635,1771927843597,-300.76821537,0.00043292,2]
[406543636,1771927843606,-350.0,0.00043349,6]
[406543637,1771927843615,-8615.08790954,0.00043526,15]
[406543638,1771927843623,-2000.0,0.000436,2]
[406543639,1771927843632,-66682.0,0.0004365,60]
[406543640,1771927843642,-350.0,0.00043798,5]
[406543641,1771927843652,-5256.5055644,0.000439,15]
[406543642,1771927843661,-12281.26,0.000439,14]
[406543643,1771927843674,-728.0,0.00044101,30]
[406543644,1771927843683,-2080.60141906,0.00044191,2]
[406543645,1771927843692,-350.0,0.00044309,10]
[406543646,1771927843702,-350.0,0.00044417,7]
[406543647,1771927843711,-257.5043,0.0004462,2]
[406543648,1771927843721,-150.0,0.0004474,2]
[406543649,1771927843730,-12281.26,0.000448,2]
[406543650,1771927843740,-350.0,0.00044958,6]
[406543651,1771927843750,-66682.0,0.00045,60]
[406543652,1771927843759,-150.0,0.00045003,30]
[406543653,1771927843769,-500.24398193,0.00045003,30]
[406543654,1771927843779,-150.0,0.00045003,30]
[406543655,1771927843788,-3161.20814662,0.00045003,30]
[406543656,1771927843797,-150.0,0.00045003,30]
[406543657,1771927843806,-198.20235507,0.00045003,30]
[406543658,1771927843815,-284.49243142,0.00045068,120]
[406543659,1771927843825,-150.0,0.00045068,120]
[406543660,1771927843834,-150.0,0.00045068,120]
[406543661,1771927843844,-150.0,0.00045068,120]
[406543662,1771927843853,-277.65171186,0.00045068,120]
[406543663,1771927843862,-2705.0,0.00045068,2]
[406543664,1771927843871,-150.0,0.00045068,120]
[406543665,1771927843881,-2705.0,0.00045068,2]
[406543666,1771927843890,-178.51167837,0.00045068,120]
[406543667,1771927843899,-2705.0,0.00045068,2]
[406543668,1771927843909,-2705.0,0.00045068,2]
[406543669,1771927843917,-2705.0,0.00045068,2]
[406543670,1771927843927,-155.51282354,0.00045068,120]
[406543671,1771927843939,-2705.0,0.00045068,2]
[406543672,1771927843949,-500.0,0.00045068,120]
[406543673,1771927843958,-2705.0,0.00045068,2]
[406543674,1771927843967,-2705.0,0.00045068,2]
[406543675,1771927843975,-500.0,0.00045068,120]
[406543676,1771927843984,-500.0,0.00045068,120]
[406543677,1771927843993,-2705.0,0.00045068,2]
[406543678,1771927844002,-500.0,0.00045068,120]
[406543679,1771927844012,-2705.0,0.00045068,2]
[406543680,1771927844020,-500.0,0.00045068,120]
[406543681,1771927844029,-2705.0,0.00045068,2]
[406543682,1771927844038,-648.05114672,0.00045068,120]
[406543683,1771927844048,-2705.0,0.00045068,2]
[406543684,1771927844057,-2705.0,0.00045068,2]
[406543685,1771927844066,-2705.0,0.00045068,2]
[406543686,1771927844075,-2705.0,0.00045068,2]
[406543687,1771927844084,-2705.0,0.00045068,2]
[406543688,1771927844093,-2705.0,0.00045068,2]
[406543689,1771927844102,-2705.0,0.00045068,2]
[406543690,1771927844112,-2705.0,0.00045068,2]
[406543691,1771927844121,-2705.0,0.00045068,2]
[406543692,1771927844130,-2705.0,0.00045068,2]
[406543693,1771927844140,-2705.0,0.00045068,2]
[406543694,1771927844149,-2705.0,0.00045068,2]
[406543695,1771927844158,-2722.15498182,0.00045068,2]
[406543696,1771927844167,-500.0,0.00045068,120]
[406543697,1771927844176,-500.0,0.00045068,120]
[406543698,1771927844185,-507.10875232,0.00045068,120]
[406543699,1771927844194,-150.0,0.00045068,120]
[406543700,1771927844203,-464.587,0.0004507,2]
[406543701,1771927844212,-150.0,0.00045205,120]
[406543702,1771927844221,-500.0,0.00045205,120]
[406543703,1771927844231,-500.0,0.00045205,120]
[406543704,1771927844240,-500.0,0.00045205,120]
[406543705,1771927844250,-500.0,0.00045205,120]
[406543707,1771927844258,-500.0,0.00045205,120]
[406543708,1771927844267,-500.0,0.00045205,120]
[406543709,1771927844276,-500.0,0.00045205,120]
[406543710,1771927844284,-500.0,0.00045205,120]
[406543711,1771927844293,-500.0,0.00045205,120]
[406543712,1771927844302,-500.0,0.00045205,120]
[406543713,1771927844312,-500.0,0.00045205,120]
[406543714,1771927844321,-500.0,0.00045205,120]
[406543715,1771927844330,-185.1,0.00045205,120]
[406543716,1771927844339,-150.0,0.00045205,120]
[406543717,1771927844348,-600.0,0.000453,120]
[406543718,1771927844357,-632.93,0.00045414,2]
[406543719,1771927844367,-632.93,0.00045414,2]
[406543720,1771927844376,-632.93,0.00045414,2]
[406543721,1771927844385,-632.93,0.00045414,2]
[406543722,1771927844395,-633.0966601,0.00045414,2]
[406543723,1771927844404,-1057.48,0.00045414,120]
[406543724,1771927844413,-1057.48,0.00045414,120]
[406543725,1771927844422,-1057.48,0.00045414,120]
[406543726,1771927844431,-1057.48,0.00045414,120]
[406543727,1771927844439,-1057.71667983,0.00045414,120]
[406543728,1771927844448,-500.0,0.00045414,120]
[406543729,1771927844457,-500.0,0.00045414,120]
[406543730,1771927844467,-390.45,0.00045414,120]
[406543731,1771927844476,-347256.2088569,0.00045415,2]
[406543732,1771927844485,-967.86848163,0.00045425,120]
[406543733,1771927844494,-4542.64996616,0.00045427,28]
[406543734,1771927844504,-403.43493761,0.00045427,2]
[406543735,1771927844512,-720.02450434,0.00045427,2]
[406543736,1771927844522,-1842.208,0.000455,2]
[406543737,1771927844530,-150.0,0.00045507,30]
[406543738,1771927844539,-159.10086542,0.00045507,30]
[406543739,1771927844548,-150.0,0.00045507,30]
[406543740,1771927844557,-506.23472364,0.00045512,2]
[406543741,1771927844566,-167.10673407,0.00045517,7]
[406543742,1771927844575,-300.0,0.00045524,30]
[406543743,1771927844584,-666.0,0.00045524,30]
[406543744,1771927844593,-169.41,0.00045525,120]
[406543745,1771927844602,-300.0,0.00045526,30]
[406543746,1771927844611,-666.0,0.00045526,30]
[406543747,1771927844620,-993.60630424,0.00045527,120]
[406543748,1771927844631,-325736.8037733,0.00045527,56]
[406543749,1771927844640,-543984.08902934,0.00045527,10]
[406543750,1771927844649,-5858.3705506,0.00045527,2]
[406543751,1771927844659,-535847.94690374,0.00045527,10]
[406543752,1771927844668,-29362.35,0.00045527,15]
[406543753,1771927844680,-2016.54129651,0.00045527,4]
[406543754,1771927844689,-2082976.19951708,0.00045527,10]
[406543755,1771927845052,-134359.56334026,0.00045527,10]
[406543756,1771927845062,-187.35270963,0.00045527,2]
[406543757,1771927845071,-459081.53621572,0.00045527,10]
[406543758,1771927845083,-557.01149695,0.00045527,10]
[406543759,1771927845107,-346.22909034,0.00045527,10]
[406543760,1771927845644,-491.42396994,0.00045527,10]
[406543761,1771927845925,-5012.56758818,0.00033541,2]
[406543762,1771927845935,-53.96748506,0.00045527,10]
[406543766,1771927847489,-192.23,0.00045,30]
[406543767,1771927847498,-328.87,0.00045,30]
[406543768,1771927847507,-291.31183521,0.00045,30]
[406543769,1771927849226,164.99040011,0.00010688,2]
[406543776,1771927960187,2182.86048874,0.00010687,2]
[406543777,1771927970065,164.99040011,0.00010687,2]
[406543778,1771927972694,243.81571398,0.00010687,2]
[406543779,1771927981343,300.0,0.00010687,2]
[406543780,1771927984712,1302.0,0.00010658,2]
[406543781,1771927992702,628.63376756,0.00010687,2]
[406543782,1771927993673,500.0,0.00010687,2]
[406543783,1771927993741,500.0,0.00010687,2]
[406543784,1771927993785,500.0,0.00010687,2]
[406543785,1771927994025,600.89950539,0.00010687,2]
[406543786,1771927994064,500.0,0.00010687,2]
[406543787,1771927994118,500.0,0.00010687,2]
[406543788,1771927994171,500.0,0.00010687,2]
[406543789,1771927994224,500.0,0.00010687,2]
[406543790,1771927994277,500.0,0.00010687,2]
[406543791,1771927994327,500.0,0.00010687,2]
[406543792,1771928034666,76.81012422,0.00010687,2]
[406543793,1771928034687,138.78247948,0.00010687,2]
[406543794,1771928041599,300.0,0.00010687,2]
[406543795,1771928080446,1455.24032582,0.00010588,2]
[406543796,1771928101284,300.0,0.00010687,2]
[406543797,1771928101314,1200.0,0.00010687,2]
[406543798,1771928102026,150.0,0.00010687,2]
[406543799,1771928118889,566.76661171,0.00010687,2]
[406543800,1771928135143,590.95845988,0.00010687,2]
[406543801,1771928161345,300.0,0.00010687,2]
[406543802,1771928200544,970.16021722,0.00010588,2]
[406543803,1771928221310,300.0,0.00010687,2]
[406543804,1771928248276,480.01633624,0.00010588,2]
[406543805,1771928281309,300.0,0.00010687,2]
[406543806,1771928282284,150.0,0.00010687,2]
[406543807,1771928307920,2500.0,0.00010588,2]
[406543808,1771928327465,206.0,0.00010582,2]
[406543809,1771928341668,300.0,0.00010687,2]
[406543810,1771928401236,300.0,0.00010687,2]
[406543811,1771928401276,1200.0,0.00010687,2]
[406543812,1771928442576,2500.0,0.00010588,2]
[406543813,1771928461592,300.0,0.00010687,2]
[406543814,1771928462144,150.0,0.00010687,2]
[406543815,1771928521355,300.0,0.00010687,2]
[406543816,1771928528090,151.0,0.00010688,2]
[406543817,1771928528692,151.0,0.00010688,2]
[406543818,1771928529390,151.0,0.00010688,2]
[406543819,1771928529996,151.0,0.00010688,2]
[406543820,1771928530601,151.0,0.00010688,2]
[406543821,1771928531385,151.0,0.00010688,2]
[406543822,1771928531846,151.0,0.00010688,2]
[406543823,1771928532514,151.0,0.00010688,2]
[406543824,1771928533139,198.0,0.00010688,2]
[406543825,1771928545249,151.0,0.00010688,2]
[406543826,1771928545570,151.0,0.00010688,2]
[406543827,1771928546187,86.01,0.00010688,2]
[406543828,1771928546208,64.99,0.00010688,2]
[406543829,1771928546815,151.0,0.00010688,2]
[406543830,1771928547588,151.0,0.00010688,2]
[406543831,1771928548194,151.0,0.00010688,2]
[406543832,1771928548815,151.0,0.00010688,2]
[406543833,1771928549436,151.0,0.00010688,2]
[406543834,1771928550042,151.0,0.00010688,2]
[406543835,1771928551179,151.0,0.00010688,2]
[406543836,1771928551997,151.0,0.00010688,2]
[406543837,1771928552470,151.0,0.00010688,2]
[406543838,1771928553087,151.0,0.00010688,2]
[406543839,1771928553678,151.0,0.00010688,2]
[406543840,1771928554278,151.0,0.00010688,2]
[406543841,1771928554912,151.0,0.00010688,2]
[406543842,1771928555512,151.0,0.00010688,2]
[406543843,1771928556374,151.0,0.00010688,2]
[406543844,1771928556737,151.0,0.00010688,2]
[406543845,1771928557516,151.0,0.00010688,2]
[406543846,1771928564315,7368.02,0.00010588,2]
[406543847,1771928564337,10000.01,0.00010588,2]
[406543848,1771928564358,10000.01,0.00010588,2]
[406543849,1771928564379,10000.01,0.00010588,2]
[406543850,1771928564400,10000.01,0.00010588,2]
[406543851,1771928564421,10000.01,0.00010588,2]
[406543852,1771928564442,10000.01,0.00010588,2]
[406543853,1771928564463,10000.01,0.00010588,2]
[406543854,1771928564483,10000.01,0.00010588,2]
[406543855,1771928564504,10000.01,0.00010588,2]
[406543856,1771928581283,300.0,0.00010587,2]
[406543857,1771928590653,202.4914633,0.000104,3]
[406543858,1771928590970,254.98292663,0.000104,3]
[406543859,1771928591019,433.45390182,0.000104,3]